fUSD/lending_fUSD_20260531
["ID","MTS","AMOUNT","RATE_DAILY","PERIOD"]
[423525379,1780191032000,-6919.0,8.078e-05,2]
[423525367,1780191032000,-1369.57726168,7.933e-05,2]
[423525365,1780191032000,-5489.08815614,7.906e-05,2]
[423525364,1780191032000,-5085.91184386,7.906e-05,2]
[423525362,1780191032000,-150.0,7.828e-05,2]
[423525363,1780191032000,-150.0,7.904e-05,2]
[423525359,1780191032000,-598.84272394,7.754e-05,2]
[423525360,1780191032000,-561.10084677,7.754e-05,2]
[423525361,1780191032000,-5010.57915323,7.754e-05,2]
[423525358,1780191032000,-72.09727606,7.754e-05,2]
[423525356,1780191032000,-338.57808205,7.753e-05,2]
[423525357,1780191032000,-300.0,7.753e-05,2]
[423525355,1780191032000,-861.42191795,7.753e-05,2]
[423525349,1780191032000,-556.38117564,7.683e-05,2]
[423525353,1780191032000,-150.0,7.752e-05,2]
[423525354,1780191032000,-1080.0,7.753e-05,2]
[423525348,1780191032000,-150.0,7.676e-05,2]
[423525351,1780191032000,-93.36990302,7.683e-05,2]
[423525346,1780191032000,-1000.0,7.669e-05,2]
[423525347,1780191032000,-500.32699531,7.669e-05,2]
[423525350,1780191032000,-1299.22892134,7.683e-05,2]
[423525345,1780191032000,-250.0,7.635e-05,2]
[423525344,1780191032000,-241.63,7.601e-05,2]
[423525343,1780191032000,-193.0,7.567e-05,2]
[423525342,1780191032000,-200.0,7.534e-05,2]
[423525366,1780191032000,-14408.0,7.922e-05,2]
[423525352,1780191032000,-250.0,7.692e-05,2]
[423525382,1780191032000,-150.0,8.132e-05,2]
[423525376,1780191032000,-150.0,8.077e-05,2]
[423525373,1780191032000,-435.0,8.062e-05,2]
[423525370,1780191032000,-1628.0,8.046e-05,2]
[423525436,1780191032000,-445.0,8.229e-05,2]
[423525432,1780191032000,-445.0,8.229e-05,2]
[423525426,1780191032000,-404.22678,8.229e-05,2]
[423525430,1780191032000,-445.0,8.229e-05,2]
[423525428,1780191032000,-445.0,8.229e-05,2]
[423525424,1780191032000,-445.0,8.229e-05,2]
[423525422,1780191032000,-500.0,8.229e-05,2]
[423525420,1780191032000,-445.0,8.229e-05,2]
[423525418,1780191032000,-500.0,8.229e-05,2]
[423525416,1780191032000,-445.0,8.229e-05,2]
[423525414,1780191032000,-445.0,8.229e-05,2]
[423525391,1780191032000,-189.0,8.208e-05,2]
[423525409,1780191032000,-445.0,8.229e-05,2]
[423525434,1780191032000,-500.0,8.229e-05,2]
[423525397,1780191032000,-500.0,8.219e-05,2]
[423525393,1780191032000,-4003.14,8.219e-05,2]
[423525374,1780191032000,-12778.0,8.062e-05,2]
[423525438,1780191032000,-500.0,8.229e-05,2]
[423525385,1780191032000,-2706.89769364,8.192e-05,2]
[423525388,1780191032000,-192.42230636,8.192e-05,2]
[423525401,1780191032000,-500.0,8.229e-05,2]
[423525371,1780191032000,-150.0,8.056e-05,2]
[423525403,1780191032000,-162.62885975,8.229e-05,2]
[423525405,1780191032000,-445.0,8.229e-05,2]
[423525395,1780191032000,-2000.0,8.219e-05,2]
[423525411,1780191032000,-445.0,8.229e-05,2]
[423525413,1780191032000,-445.0,8.229e-05,2]
[423525407,1780191032000,-150.0,8.229e-05,2]
[423525399,1780191032000,-500.0,8.229e-05,2]
[423525467,1780191033000,-500.0,8.229e-05,2]
[423525469,1780191033000,-500.0,8.229e-05,2]
[423525475,1780191033000,-445.0,8.229e-05,2]
[423525477,1780191033000,-500.0,8.229e-05,2]
[423525479,1780191033000,-500.0,8.229e-05,2]
[423525471,1780191033000,-500.0,8.229e-05,2]
[423525481,1780191033000,-500.0,8.229e-05,2]
[423525483,1780191033000,-500.0,8.229e-05,2]
[423525465,1780191033000,-500.0,8.229e-05,2]
[423525485,1780191033000,-500.0,8.229e-05,2]
[423525473,1780191033000,-500.0,8.229e-05,2]
[423525463,1780191033000,-445.0,8.229e-05,2]
[423525455,1780191033000,-500.0,8.229e-05,2]
[423525448,1780191033000,-445.0,8.229e-05,2]
[423525449,1780191033000,-500.0,8.229e-05,2]
[423525459,1780191033000,-617.14483003,8.229e-05,2]
[423525457,1780191033000,-500.0,8.229e-05,2]
[423525446,1780191033000,-500.0,8.229e-05,2]
[423525444,1780191033000,-445.0,8.229e-05,2]
[423525453,1780191033000,-500.0,8.229e-05,2]
[423525451,1780191033000,-445.0,8.229e-05,2]
[423525442,1780191033000,-500.0,8.229e-05,2]
[423525440,1780191033000,-445.0,8.229e-05,2]
[423525487,1780191033000,-500.0,8.229e-05,2]
[423525461,1780191033000,-500.0,8.229e-05,2]
[423525486,1780191033000,-500.0,8.229e-05,2]
[423525489,1780191033000,-500.0,8.229e-05,2]
[423525507,1780191033000,-150.0,8.239e-05,2]
[423525488,1780191033000,-500.0,8.229e-05,2]
[423525513,1780191033000,-150.0,8.239e-05,2]
[423525514,1780191033000,-244.98691436,8.239e-05,2]
[423525510,1780191033000,-150.0,8.239e-05,2]
[423525512,1780191033000,-150.0,8.239e-05,2]
[423525511,1780191033000,-500.0,8.239e-05,2]
[423525509,1780191033000,-150.0,8.239e-05,2]
[423525504,1780191033000,-150.0,8.229e-05,2]
[423525505,1780191033000,-150.0,8.229e-05,2]
[423525506,1780191033000,-182.08909276,8.229e-05,2]
[423525508,1780191033000,-150.0,8.239e-05,2]
[423525500,1780191033000,-445.0,8.229e-05,2]
[423525502,1780191033000,-207.46360016,8.229e-05,2]
[423525501,1780191033000,-354.44569312,8.229e-05,2]
[423525490,1780191033000,-500.0,8.229e-05,2]
[423525493,1780191033000,-445.0,8.229e-05,2]
[423525492,1780191033000,-246.5585559,8.229e-05,2]
[423525495,1780191033000,-500.0,8.229e-05,2]
[423525503,1780191033000,-150.0,8.229e-05,2]
[423525494,1780191033000,-337.72590418,8.229e-05,2]
[423525491,1780191033000,-500.0,8.229e-05,2]
[423525496,1780191033000,-500.0,8.229e-05,2]
[423525498,1780191033000,-500.0,8.229e-05,2]
[423525499,1780191033000,-500.0,8.229e-05,2]
[423525497,1780191033000,-500.0,8.229e-05,2]
[423525528,1780191038000,-213.92379555,7.753e-05,2]
[423525530,1780191038000,-500.0,7.753e-05,2]
[423525532,1780191038000,-500.0,7.753e-05,2]
[423525536,1780191038000,-500.0,7.753e-05,2]
[423525535,1780191038000,-500.0,7.753e-05,2]
[423525550,1780191038000,-500.0,7.753e-05,2]
[423525531,1780191038000,-500.0,7.753e-05,2]
[423525534,1780191038000,-500.0,7.753e-05,2]
[423525540,1780191038000,-500.0,7.753e-05,2]
[423525548,1780191038000,-145.35749061,7.753e-05,2]
[423525529,1780191038000,-500.0,7.753e-05,2]
[423525533,1780191038000,-500.0,7.753e-05,2]
[423525526,1780191038000,-276.2541913,7.753e-05,2]
[423525516,1780191038000,-500.1163946,7.753e-05,2]
[423525537,1780191038000,-500.0,7.753e-05,2]
[423525527,1780191038000,-500.0,7.753e-05,2]
[423525524,1780191038000,-481.24999893,7.753e-05,2]
[423525523,1780191038000,-346.61272319,7.753e-05,2]
[423525522,1780191038000,-153.38727681,7.753e-05,2]
[423525520,1780191038000,-500.0,7.753e-05,2]
[423525525,1780191038000,-501.69742277,7.753e-05,2]
[423525517,1780191038000,-500.0,7.753e-05,2]
[423525518,1780191038000,-500.0,7.753e-05,2]
[423525519,1780191038000,-500.0,7.753e-05,2]
[423525521,1780191038000,-500.0,7.753e-05,2]
[423525538,1780191038000,-500.0,7.753e-05,2]
[423525539,1780191038000,-500.0,7.753e-05,2]
[423525562,1780191038000,-500.0,7.753e-05,2]
[423525542,1780191038000,-500.0,7.753e-05,2]
[423525549,1780191038000,-354.64250939,7.753e-05,2]
[423525572,1780191038000,-452.0,8.229e-05,2]
[423525577,1780191038000,-452.0,8.229e-05,2]
[423525575,1780191038000,-452.0,8.229e-05,2]
[423525573,1780191038000,-452.0,8.229e-05,2]
[423525564,1780191038000,-445.0,8.229e-05,2]
[423525570,1780191038000,-452.0,8.229e-05,2]
[423525568,1780191038000,-445.0,8.229e-05,2]
[423525566,1780191038000,-445.0,8.229e-05,2]
[423525558,1780191038000,-500.0,7.753e-05,2]
[423525560,1780191038000,-500.0,7.753e-05,2]
[423525555,1780191038000,-500.0,7.753e-05,2]
[423525559,1780191038000,-500.0,7.753e-05,2]
[423525563,1780191038000,-500.0,7.753e-05,2]
[423525551,1780191038000,-500.0,7.753e-05,2]
[423525553,1780191038000,-500.0,7.753e-05,2]
[423525547,1780191038000,-500.0,7.753e-05,2]
[423525541,1780191038000,-500.0,7.753e-05,2]
[423525543,1780191038000,-500.0,7.753e-05,2]
[423525552,1780191038000,-500.0,7.753e-05,2]
[423525546,1780191038000,-500.0,7.753e-05,2]
[423525554,1780191038000,-500.0,7.753e-05,2]
[423525544,1780191038000,-500.0,7.753e-05,2]
[423525557,1780191038000,-500.0,7.753e-05,2]
[423525556,1780191038000,-500.0,7.753e-05,2]
[423525561,1780191038000,-500.0,7.753e-05,2]
[423525545,1780191038000,-247.16857435,7.753e-05,2]
[423525628,1780191039000,-250.0,8.361e-05,2]
[423525633,1780191039000,-2776.0,8.465e-05,2]
[423525632,1780191039000,-18507.0,8.404e-05,2]
[423525623,1780191039000,-1174.0,8.353e-05,2]
[423525629,1780191039000,-286.0,8.369e-05,2]
[423525626,1780191039000,-500.0,8.361e-05,2]
[423525624,1780191039000,-500.0,8.361e-05,2]
[423525621,1780191039000,-500.0,8.287e-05,2]
[423525637,1780191039000,-227.27318715,8.503e-05,2]
[423525622,1780191039000,-5086.90624348,8.287e-05,2]
[423525627,1780191039000,-500.0,8.361e-05,2]
[423525644,1780191039000,-310171.82,8.514e-05,2]
[423525656,1780191039000,-1765.37,8.773e-05,2]
[423525638,1780191039000,-500.0,8.503e-05,2]
[423525643,1780191039000,-67808.09654632,8.504e-05,2]
[423525635,1780191039000,-500.0,8.493e-05,2]
[423525639,1780191039000,-500.0,8.503e-05,2]
[423525634,1780191039000,-166.66,8.487e-05,2]
[423525636,1780191039000,-186.06752033,8.503e-05,2]
[423525640,1780191039000,-494.49743367,8.503e-05,2]
[423525641,1780191039000,-500.0,8.503e-05,2]
[423525646,1780191039000,-1680.0,8.528e-05,2]
[423525654,1780191039000,-166.66,8.767e-05,2]
[423525655,1780191039000,-500.0,8.767e-05,2]
[423525619,1780191039000,-199.01434305,8.239e-05,2]
[423525657,1780191039000,-1765.37,8.821e-05,2]
[423525649,1780191039000,-13786.0,8.639e-05,2]
[423525642,1780191039000,-187.73346809,8.503e-05,2]
[423525620,1780191039000,-193.0,8.287e-05,2]
[423525617,1780191039000,-500.0,8.239e-05,2]
[423525631,1780191039000,-4682.0,8.387e-05,2]
[423525648,1780191039000,-196.4635467,8.639e-05,2]
[423525579,1780191039000,-255.01308564,8.239e-05,2]
[423525581,1780191039000,-150.0,8.239e-05,2]
[423525583,1780191039000,-500.0,8.239e-05,2]
[423525585,1780191039000,-250.0,8.239e-05,2]
[423525598,1780191039000,-500.0,8.239e-05,2]
[423525600,1780191039000,-500.0,8.239e-05,2]
[423525591,1780191039000,-500.0,8.239e-05,2]
[423525589,1780191039000,-500.0,8.239e-05,2]
[423525603,1780191039000,-500.0,8.239e-05,2]
[423525587,1780191039000,-209.03326579,8.239e-05,2]
[423525601,1780191039000,-500.0,8.239e-05,2]
[423525593,1780191039000,-500.0,8.239e-05,2]
[423525604,1780191039000,-500.0,8.239e-05,2]
[423525605,1780191039000,-500.0,8.239e-05,2]
[423525602,1780191039000,-500.0,8.239e-05,2]
[423525596,1780191039000,-549.95591964,8.239e-05,2]
[423525618,1780191039000,-256.68494043,8.239e-05,2]
[423525607,1780191039000,-500.0,8.239e-05,2]
[423525608,1780191039000,-500.0,8.239e-05,2]
[423525606,1780191039000,-500.0,8.239e-05,2]
[423525609,1780191039000,-500.0,8.239e-05,2]
[423525613,1780191039000,-500.0,8.239e-05,2]
[423525612,1780191039000,-500.0,8.239e-05,2]
[423525611,1780191039000,-500.0,8.239e-05,2]
[423525615,1780191039000,-500.0,8.239e-05,2]
[423525614,1780191039000,-500.0,8.239e-05,2]
[423525610,1780191039000,-500.0,8.239e-05,2]
[423525616,1780191039000,-500.0,8.239e-05,2]
[423525630,1780191039000,-876.0,8.371e-05,2]
[423525647,1780191039000,-420.0,8.528e-05,2]
[423525625,1780191039000,-500.0,8.361e-05,2]
[423525650,1780191039000,-4902.0,8.656e-05,2]
[423525691,1780191039000,-150.0,9.616e-05,2]
[423525687,1780191039000,-166.66,9.607e-05,2]
[423525688,1780191039000,-150.0,9.616e-05,2]
[423525694,1780191039000,-150.0,9.616e-05,2]
[423525686,1780191039000,-1765.37,9.594e-05,2]
[423525692,1780191039000,-150.0,9.616e-05,2]
[423525693,1780191039000,-150.0,9.616e-05,2]
[423525684,1780191039000,-1765.37,9.546e-05,2]
[423525696,1780191039000,-150.0,9.616e-05,2]
[423525697,1780191039000,-150.0,9.63e-05,2]
[423525708,1780191039000,-150.0,9.717e-05,2]
[423525699,1780191039000,-150.0,9.645e-05,2]
[423525698,1780191039000,-1765.37,9.642e-05,2]
[423525690,1780191039000,-150.0,9.616e-05,2]
[423525700,1780191039000,-150.0,9.65e-05,2]
[423525701,1780191039000,-150.0,9.659e-05,2]
[423525704,1780191039000,-150.0,9.687e-05,2]
[423525703,1780191039000,-150.0,9.683e-05,2]
[423525706,1780191039000,-150.0,9.701e-05,2]
[423525705,1780191039000,-150.0,9.688e-05,2]
[423525711,1780191039000,-204.59,9.729e-05,2]
[423525710,1780191039000,-150.0,9.729e-05,2]
[423525715,1780191039000,-150.0,9.759e-05,2]
[423525714,1780191039000,-150.0,9.757e-05,2]
[423525712,1780191039000,-150.0,9.743e-05,2]
[423525709,1780191039000,-168.45855,9.719e-05,2]
[423525713,1780191039000,-150.0,9.75e-05,2]
[423525653,1780191039000,-1765.37,8.724e-05,2]
[423525702,1780191039000,-150.0,9.673e-05,2]
[423525685,1780191039000,-500.0,9.589e-05,2]
[423525707,1780191039000,-150.0,9.715e-05,2]
[423525689,1780191039000,-150.0,9.616e-05,2]
[423525695,1780191039000,-150.0,9.616e-05,2]
[423525645,1780191039000,-216.0,8.518e-05,2]
[423525652,1780191039000,-1643.0,8.675e-05,2]
[423525658,1780191039000,-1765.37,8.869e-05,2]
[423525663,1780191039000,-500.0,9.041e-05,2]
[423525659,1780191039000,-255.0,8.885e-05,2]
[423525660,1780191039000,-1765.37,8.918e-05,2]
[423525662,1780191039000,-1765.37,9.014e-05,2]
[423525661,1780191039000,-1765.37,8.966e-05,2]
[423525670,1780191039000,-2000.0,9.247e-05,2]
[423525669,1780191039000,-204.59,9.217e-05,2]
[423525664,1780191039000,-166.66,9.047e-05,2]
[423525667,1780191039000,-1765.37,9.159e-05,2]
[423525668,1780191039000,-1765.37,9.208e-05,2]
[423525665,1780191039000,-1765.37,9.063e-05,2]
[423525651,1780191039000,-215.58360558,8.665e-05,2]
[423525677,1780191039000,-1765.37,9.353e-05,2]
[423525682,1780191039000,-1765.37,9.498e-05,2]
[423525676,1780191039000,-166.66,9.327e-05,2]
[423525680,1780191039000,-1765.37,9.401e-05,2]
[423525666,1780191039000,-1765.37,9.111e-05,2]
[423525675,1780191039000,-500.0,9.315e-05,2]
[423525674,1780191039000,-1765.37,9.304e-05,2]
[423525678,1780191039000,-2351.0,9.381e-05,2]
[423525672,1780191039000,-1234.83,9.271e-05,2]
[423525679,1780191039000,-403.0,9.381e-05,2]
[423525671,1780191039000,-1765.37,9.256e-05,2]
[423525681,1780191039000,-1765.37,9.449e-05,2]
[423525683,1780191039000,-500.0,9.526e-05,2]
[423525673,1780191039000,-8205.69,9.271e-05,2]
[423525754,1780191040000,-150.0,9.996e-05,2]
[423525748,1780191040000,-150.0,9.973e-05,2]
[423525751,1780191040000,-1074.71467954,9.98e-05,2]
[423525753,1780191040000,-150.0,9.984e-05,2]
[423525758,1780191040000,-340.18040467,0.0001,2]
[423525749,1780191040000,-208470.10668758,9.977e-05,2]
[423525755,1780191040000,-163.56,0.0001,2]
[423525750,1780191040000,-736.84843222,9.98e-05,2]
[423525756,1780191040000,-340.0,0.0001,2]
[423525759,1780191040000,-150.0,0.0001001,2]
[423525752,1780191040000,-150.0,9.982e-05,2]
[423525761,1780191040000,-150.0,0.00010024,2]
[423525757,1780191040000,-340.0,0.0001,2]
[423525765,1780191040000,-150.0,0.00010038,2]
[423525766,1780191040000,-150.0,0.00010044,2]
[423525763,1780191040000,-150.0,0.00010026,7]
[423525764,1780191040000,-4000.0,0.00010027,2]
[423525772,1780191040000,-1178.02027947,0.00010067,2]
[423525767,1780191040000,-1600.0,0.00010046,2]
[423525768,1780191040000,-150.0,0.00010051,2]
[423525760,1780191040000,-150.0,0.00010017,2]
[423525771,1780191040000,-150.0,0.00010066,2]
[423525770,1780191040000,-17562.0,0.00010055,2]
[423525769,1780191040000,-150.0,0.00010052,2]
[423525783,1780191040000,-150.0,0.00010094,2]
[423525774,1780191040000,-151.0,0.00010074,2]
[423525784,1780191040000,-262.88228828,0.000101,2]
[423525777,1780191040000,-1086.10079432,0.00010076,3]
[423525762,1780191040000,-155.15055898,0.00010026,7]
[423525747,1780191040000,-150.0,9.973e-05,2]
[423525717,1780191040000,-433.0,9.773e-05,2]
[423525746,1780191040000,-150.0,9.968e-05,2]
[423525775,1780191040000,-151.0,0.00010074,2]
[423525719,1780191040000,-150.0,9.785e-05,2]
[423525718,1780191040000,-150.0,9.783e-05,2]
[423525716,1780191040000,-150.0,9.771e-05,2]
[423525720,1780191040000,-150.0,9.795e-05,2]
[423525729,1780191040000,-150.0,9.855e-05,2]
[423525731,1780191040000,-150.0,9.87e-05,2]
[423525721,1780191040000,-1001.47110534,9.799e-05,2]
[423525734,1780191040000,-166.66,9.888e-05,2]
[423525724,1780191040000,-150.0,9.817e-05,2]
[423525722,1780191040000,-150.0,9.799e-05,2]
[423525730,1780191040000,-500.0,9.863e-05,2]
[423525732,1780191040000,-150.0,9.884e-05,2]
[423525726,1780191040000,-150.0,9.83e-05,2]
[423525725,1780191040000,-150.0,9.827e-05,2]
[423525733,1780191040000,-150.0,9.884e-05,2]
[423525728,1780191040000,-150.0,9.85e-05,2]
[423525727,1780191040000,-150.0,9.841e-05,2]
[423525723,1780191040000,-150.0,9.813e-05,2]
[423525736,1780191040000,-150.0,9.901e-05,2]
[423525735,1780191040000,-150.0,9.898e-05,2]
[423525740,1780191040000,-150.0,9.94e-05,2]
[423525741,1780191040000,-150.0,9.95e-05,2]
[423525739,1780191040000,-150.0,9.926e-05,2]
[423525745,1780191040000,-156.94942962,9.966e-05,2]
[423525742,1780191040000,-1000.0,9.952e-05,2]
[423525737,1780191040000,-150.0,9.912e-05,2]
[423525744,1780191040000,-250.0,9.954e-05,2]
[423525743,1780191040000,-150.0,9.954e-05,2]
[423525738,1780191040000,-150.0,9.917e-05,2]
[423525779,1780191040000,-150.0,0.00010076,2]
[423525780,1780191040000,-2000.0,0.00010077,2]
[423525776,1780191040000,-1086.10079431,0.00010076,3]
[423525825,1780191040000,-150.0,0.00010351,2]
[423525818,1780191040000,-150.0,0.00010318,2]
[423525822,1780191040000,-150.0,0.00010329,2]
[423525821,1780191040000,-150.0,0.00010329,2]
[423525819,1780191040000,-3292.0,0.00010319,2]
[423525812,1780191040000,-150.0,0.00010277,2]
[423525817,1780191040000,-150.0,0.00010305,2]
[423525816,1780191040000,-207098.01877864,0.000103,2]
[423525815,1780191040000,-150.0,0.00010291,2]
[423525820,1780191040000,-150.0,0.00010319,2]
[423525834,1780191040000,-150.0,0.00010418,2]
[423525826,1780191040000,-150.0,0.00010362,2]
[423525835,1780191040000,-150.0,0.00010432,2]
[423525824,1780191040000,-150.0,0.00010348,2]
[423525836,1780191040000,-150.0,0.00010446,2]
[423525830,1780191040000,-150.0,0.000104,2]
[423525837,1780191040000,-150.0,0.00010451,2]
[423525827,1780191040000,-150.0,0.00010376,2]
[423525831,1780191040000,-150.0,0.00010404,2]
[423525829,1780191040000,-150.0,0.0001039,2]
[423525828,1780191040000,-150.0,0.00010384,2]
[423525838,1780191040000,-150.0,0.0001046,2]
[423525833,1780191040000,-150.0,0.00010418,2]
[423525839,1780191040000,-150.0,0.00010471,2]
[423525841,1780191040000,-59363.7540043,0.00010479,2]
[423525840,1780191040000,-150.0,0.00010474,2]
[423525778,1780191040000,-1086.10079432,0.00010076,3]
[423525843,1780191040000,-150.0,0.00010488,2]
[423525832,1780191040000,-500.0,0.00010411,2]
[423525814,1780191040000,-150.0,0.00010284,2]
[423525842,1780191040000,-150.0,0.00010485,2]
[423525813,1780191040000,-4000.0,0.00010278,2]
[423525823,1780191040000,-150.0,0.00010333,2]
[423525782,1780191040000,-150.0,0.00010084,2]
[423525786,1780191040000,-150.0,0.00010115,2]
[423525785,1780191040000,-150.0,0.00010109,2]
[423525788,1780191040000,-150.0,0.00010123,2]
[423525798,1780191040000,-150.0,0.00010184,2]
[423525787,1780191040000,-150.0,0.00010117,2]
[423525792,1780191040000,-150.0,0.00010151,2]
[423525796,1780191040000,-150.0,0.00010165,2]
[423525790,1780191040000,-500.0,0.00010137,2]
[423525794,1780191040000,-150.0,0.00010151,2]
[423525793,1780191040000,-150.0,0.00010151,2]
[423525789,1780191040000,-150.0,0.00010137,2]
[423525791,1780191040000,-150.0,0.00010151,2]
[423525781,1780191040000,-150.0,0.0001008,2]
[423525795,1780191040000,-150.0,0.00010151,2]
[423525797,1780191040000,-150.0,0.00010179,2]
[423525809,1780191040000,-150.0,0.00010258,2]
[423525807,1780191040000,-150.0,0.00010249,2]
[423525804,1780191040000,-187.94100398,0.00010227,7]
[423525805,1780191040000,-150.0,0.00010235,2]
[423525802,1780191040000,-150.0,0.00010217,2]
[423525808,1780191040000,-150.0,0.00010251,2]
[423525811,1780191040000,-2000.0,0.00010274,2]
[423525799,1780191040000,-150.0,0.00010186,2]
[423525801,1780191040000,-150.0,0.00010207,2]
[423525803,1780191040000,-150.0,0.00010221,2]
[423525800,1780191040000,-150.0,0.00010193,2]
[423525810,1780191040000,-150.0,0.00010263,2]
[423525806,1780191040000,-204.59,0.00010241,2]
[423525883,1780191041000,-736.0,0.0001075,2]
[423525882,1780191041000,-4315006.56304413,0.000107,2]
[423525884,1780191041000,-204.59,0.00010753,2]
[423525881,1780191041000,-271.53934617,0.000107,2]
[423525874,1780191041000,-150.0,0.00010685,2]
[423525880,1780191041000,-1178.02027947,0.0001069,2]
[423525877,1780191041000,-158.46483015,0.00010685,2]
[423525879,1780191041000,-1178.02027947,0.0001069,2]
[423525885,1780191041000,-4000.0,0.00010779,2]
[423525886,1780191041000,-20200.0,0.000108,3]
[423525878,1780191041000,-500.0,0.00010685,2]
[423525875,1780191041000,-217.23219505,0.00010685,2]
[423525891,1780191041000,-500.0,0.00010959,2]
[423525888,1780191041000,-150.0,0.00010959,2]
[423525887,1780191041000,-4000.0,0.000109,3]
[423525894,1780191041000,-1074.71467953,0.00010999,2]
[423525893,1780191041000,-194.2,0.00010989,2]
[423525892,1780191041000,-523.38,0.00010989,2]
[423525890,1780191041000,-186.46,0.00010959,2]
[423525895,1780191041000,-8973.17589556,0.00011,2]
[423525896,1780191041000,-4000.0,0.0001103,2]
[423525897,1780191041000,-3714.42932104,0.00011033,2]
[423525899,1780191041000,-300.0,0.00011098,2]
[423525898,1780191041000,-300.0,0.00011098,2]
[423525901,1780191041000,-300.0,0.00011098,2]
[423525876,1780191041000,-276.9758734,0.00010685,2]
[423525889,1780191041000,-150.0,0.00010959,2]
[423525872,1780191041000,-279.98397847,0.00010685,2]
[423525859,1780191041000,-150.0,0.00010601,2]
[423525869,1780191041000,-150.0,0.00010671,2]
[423525907,1780191041000,-66709.45526216,0.00011099,2]
[423525848,1780191041000,-150.0,0.00010516,2]
[423525846,1780191041000,-150.0,0.00010507,2]
[423525844,1780191041000,-1074.71467953,0.0001049,2]
[423525849,1780191041000,-150.0,0.00010518,2]
[423525845,1780191041000,-150.0,0.00010502,2]
[423525847,1780191041000,-160.0,0.00010508,2]
[423525851,1780191041000,-150.0,0.0001053,2]
[423525852,1780191041000,-150.0,0.00010542,2]
[423525853,1780191041000,-150.0,0.00010544,2]
[423525854,1780191041000,-150.0,0.00010551,2]
[423525855,1780191041000,-150.0,0.00010558,2]
[423525870,1780191041000,-150.0,0.00010685,2]
[423525858,1780191041000,-150.0,0.00010587,2]
[423525857,1780191041000,-150.0,0.00010585,2]
[423525861,1780191041000,-774.51180053,0.00010605,2]
[423525860,1780191041000,-2500.80487758,0.00010605,2]
[423525862,1780191041000,-150.0,0.00010614,2]
[423525865,1780191041000,-150.0,0.00010629,2]
[423525866,1780191041000,-150.0,0.00010643,2]
[423525864,1780191041000,-150.0,0.00010618,2]
[423525863,1780191041000,-150.0,0.00010615,2]
[423525867,1780191041000,-150.0,0.00010652,2]
[423525873,1780191041000,-272.82919498,0.00010685,2]
[423525871,1780191041000,-150.34604901,0.00010685,2]
[423525868,1780191041000,-150.0,0.00010657,2]
[423525856,1780191041000,-150.0,0.00010572,2]
[423525900,1780191041000,-666.0,0.00011098,2]
[423525850,1780191041000,-4000.0,0.00010529,2]
[423525906,1780191041000,-66709.45526216,0.00011099,2]
[423525941,1780191041000,-204.59,0.00011265,2]
[423525940,1780191041000,-671.33617362,0.00011234,2]
[423525945,1780191041000,-942.72362383,0.00011376,2]
[423525949,1780191041000,-500.0,0.00011781,2]
[423525942,1780191041000,-1600.0,0.00011301,2]
[423525948,1780191041000,-204.59,0.00011777,2]
[423525943,1780191041000,-2000.0,0.00011301,2]
[423525939,1780191041000,-300.0,0.00011234,2]
[423525937,1780191041000,-150.0,0.00011233,2]
[423525944,1780191041000,-4609.0,0.00011351,2]
[423525962,1780191041000,-6453.0,0.00012486,2]
[423525953,1780191041000,-300.0,0.00012054,2]
[423525954,1780191041000,-40520.54,0.00012055,2]
[423525951,1780191041000,-1550.9833,0.000118,2]
[423525959,1780191041000,-897.55,0.00012329,2]
[423525961,1780191041000,-500.0,0.00012329,2]
[423525958,1780191041000,-232.72583848,0.000123,7]
[423525955,1780191041000,-500.0,0.00012055,2]